[Event "44th Chess Olympiad Open 2022"]
[Site "Chennai"]
[Date "2022.08.09"]
[Round "11.37"]
[White "Giron, Jorge Ernesto"]
[Black "Stanojoski, Zvonko"]
[Result "1/2-1/2"]
[ECO "B61"]
[WhiteElo "2288"]
[BlackElo "2412"]
[Annotator "RC"]
[PlyCount "60"]
[EventDate "2022.07.29"]
[EventType "team-tourn"]
[EventCountry "IND"]
[SourceTitle "playchess.com"]
[Source "ChessBase"]
[SourceQuality "1"]
[WhiteTeam "El Salvador"]
[BlackTeam "Macedonia"]
[WhiteTeamCountry "ESA"]
[BlackTeamCountry "MKD"]
[TimeControl "40/5400+30:1800+30"]

1. e4 {[%emt 0:00:36]} c5 {[%emt 0:00:04]} 2. Nf3 {[%emt 0:00:18]} Nc6 {[%emt 0:00:09]} 3. d4 {[%emt 0:00:06]} cxd4 {[%emt 0:00:05]} 4. Nxd4 {[%emt 0:00:06]} Nf6 {[%emt 0:00:13]} 5. Nc3 {[%emt 0:00:10]} d6 {[%emt 0:00:05]} 6. Bg5 {[%emt 0:00:12]} Bd7 {[%emt 0:00:06]} 7. Qd2 {[%emt 0:00:10]} Rc8 {[%emt 0:00:14]} 8. f4 {[%emt 0:00:24]} Nxd4 {[%emt 0:01:26]} 9. Qxd4 {[%emt 0:00:06]} Qa5 {[%emt 0:00:07]} 10. e5 {[%emt 0:05:57]} dxe5 {[%emt 0:02:22]} 11. fxe5 {[%emt 0:00:49]} e6 {[%emt 0:00:30]} 12. exf6 {[%emt 0:00:06]} Qxg5 {[%emt 0:00:42]} 13. Ne4 {[%emt 0:00:08]} Qa5+ {[%emt 0:05:11]} 14. c3 {[%emt 0:03:20]} g6 {[%emt 0:00:50]} 15. O-O-O {[%emt 0:14:42]} Bc6 {[%emt 0:03:52]} 16. Kb1 {[%emt 0:07:24]} Rd8 {[%emt 0:07:25]} 17. Qxd8+ {[%emt 0:00:11]} Qxd8 {[%emt 0:00:05]} 18. Rxd8+ {[%emt 0:00:05]} Kxd8 {[%emt 0:00:04]} 19. Bd3 {[%emt 0:03:11]} Kc7 {[%emt 0:05:44]} 20. Ng5 {[%emt 0:03:28]} Be8 {[%emt 0:01:01]} 21. Be4 {[%emt 0:01:44]} Bd6 {[%emt 0:02:56]} 22. Nf3 {[%emt 0:03:10]} h6 {[%emt 0:01:52]} 23. Rd1 {[%emt 0:04:09]} g5 {[%emt 0:09:18]} 24. h3 {[%emt 0:01:21]} Bc6 {[%emt 0:10:16]} 25. Bxc6 {[%emt 0:00:20]} bxc6 {[%emt 0:00:07]} 26. Rd4 {[%emt 0:01:22]} Bf4 {[%emt 0:10:15]} 27. Ra4 {[%emt 0:07:08]} Kb6 {[%emt 0:02:23]} 28. Rb4+ {[%emt 0:00:37]} Kc7 {[%emt 0:00:10]} 29. Ra4 {[%emt 0:00:04]} Kb6 {[%emt 0:01:00]} 30. Rb4+ {[%emt 0:00:05]} Kc7 {[%emt 0:00:06]} 1/2-1/2

[Event "44th Chess Olympiad Open 2022"]
[Site "Chennai"]
[Date "2022.08.09"]
[Round "11.37"]
[White "Burgos Figueroa, Carlos E."]
[Black "Lazov, Toni"]
[Result "1-0"]
[ECO "A36"]
[WhiteElo "2164"]
[BlackElo "2374"]
[Annotator "RC"]
[PlyCount "103"]
[EventDate "2022.07.29"]
[EventType "team-tourn"]
[EventCountry "IND"]
[SourceTitle "playchess.com"]
[Source "ChessBase"]
[SourceQuality "1"]
[WhiteTeam "El Salvador"]
[BlackTeam "Macedonia"]
[WhiteTeamCountry "ESA"]
[BlackTeamCountry "MKD"]
[TimeControl "40/5400+30:1800+30"]

1. e4 {[%emt 0:00:03]} c5 {[%emt 0:00:13]} 2. c4 {[%emt 0:00:06]} Nc6 {[%emt 0:01:33]} 3. Nc3 {[%emt 0:00:05]} g6 {[%emt 0:02:23]} 4. g3 {[%emt 0:00:06]} Bg7 {[%emt 0:00:05]} 5. Bg2 {[%emt 0:00:04]} e6 {[%emt 0:05:03]} 6. Nge2 {[%emt 0:00:10]} Nge7 {[%emt 0:00:29]} 7. O-O {[%emt 0:00:10]} O-O {[%emt 0:01:32]} 8. d3 {[%emt 0:00:16]} d6 {[%emt 0:01:21]} 9. Be3 {[%emt 0:00:05]} Nd4 {[%emt 0:00:16]} 10. Qd2 {[%emt 0:00:05]} Nec6 {[%emt 0:16:55]} 11. Bh6 {[%emt 0:06:01]} Bxh6 {[%emt 0:12:50]} 12. Qxh6 {[%emt 0:00:07]} Nxe2+ {[%emt 0:00:13]} 13. Nxe2 {[%emt 0:00:02]} Qf6 {[%emt 0:01:00]} 14. Qd2 {[%emt 0:00:19]} Rb8 {[%emt 0:02:05]} 15. Rad1 {[%emt 0:00:46]} b5 {[%emt 0:05:04]} 16. b3 {[%emt 0:00:06]} b4 {[%emt 0:13:13]} 17. d4 {[%emt 0:06:19]} e5 {[%emt 0:00:22]} 18. dxc5 {[%emt 0:06:27]} dxc5 {[%emt 0:00:13]} 19. Qd6 {[%emt 0:00:05]} Qxd6 {[%emt 0:04:34]} 20. Rxd6 {[%emt 0:00:02]} Ne7 {[%emt 0:14:31]} 21. Nc1 {[%emt 0:04:32]} Rb6 {[%emt 0:00:13]} 22. Rfd1 {[%emt 0:00:28]} Be6 {[%emt 0:01:40]} 23. f4 {[%emt 0:08:26]} exf4 {[%emt 0:02:10]} 24. gxf4 {[%emt 0:03:01]} Kg7 {[%emt 0:01:00]} 25. Kf2 {[%emt 0:04:04]} h6 {[%emt 0:00:50]} 26. Ke3 {[%emt 0:00:09]} Re8 {[%emt 0:02:42]} 27. Rd8 {[%emt 0:00:38]} Kf8 {[%emt 0:03:55]} 28. R1d2 {[%emt 0:10:05]} Nc8 {[%emt 0:01:43]} 29. Rxe8+ {[%emt 0:04:56]} Kxe8 {[%emt 0:00:01]} 30. Nd3 {[%emt 0:00:09]} Rc6 {[%emt 0:01:05]} 31. f5 {[%emt 0:00:50]} Bd7 {[%emt 0:00:20]} 32. Ne5 {[%emt 0:00:11]} Rd6 {[%emt 0:00:41]} 33. fxg6 {[%emt 0:01:02]} fxg6 {[%emt 0:00:04]} 34. Rxd6 {[%emt 0:00:07]} Nxd6 {[%emt 0:00:02]} 35. Nxg6 {[%emt 0:00:07]} Be6 {[%emt 0:01:42]} 36. Ne5 {[%emt 0:01:07]} Kd8 {[%emt 0:03:26]} 37. Bf3 {[%emt 0:04:29]} Kc7 {[%emt 0:00:50]} 38. h4 {[%emt 0:00:37]} a5 {[%emt 0:00:08]} 39. Be2 {[%emt 0:00:56]} Kb6 {[%emt 0:03:02]} 40. Ng6 {[%emt 0:02:50]} a4 {[%emt 0:00:20]} 41. Nf4 {[%emt 0:00:03]} Bg8 {[%emt 0:09:54]} 42. Bd3 {[%emt 0:03:58]} Kc7 {[%emt 0:19:27]} 43. e5 {[%emt 0:01:12]} Nb5 {[%emt 0:02:17]} 44. cxb5 {[%emt 0:03:11]} axb3 {[%emt 0:00:27]} 45. axb3 {[%emt 0:00:03]} Bxb3 {[%emt 0:00:04]} 46. Be4 {[%emt 0:01:16]} Kb6 {[%emt 0:00:27]} 47. Bd5 {[%emt 0:00:28]} Ba4 {[%emt 0:01:01]} 48. Bc4 {[%emt 0:00:53]} b3 {[%emt 0:00:02]} 49. Nd5+ {[%emt 0:00:15]} Kb7 {[%emt 0:00:15]} 50. Nc3 {[%emt 0:00:20]} b2 {[%emt 0:00:02]} 51. Bd5+ {[%emt 0:00:25]} Kc8 {[%emt 0:00:18]} 52. Be4 {[%emt 0:00:18]} 1-0

[Event "44th Chess Olympiad Open 2022"]
[Site "Chennai"]
[Date "2022.08.09"]
[Round "11.38"]
[White "Hernandez Guerrero, Gilberto"]
[Black "Harper, Ryan"]
[Result "1/2-1/2"]
[ECO "C77"]
[WhiteElo "2560"]
[BlackElo "2208"]
[Annotator "RC"]
[PlyCount "100"]
[EventDate "2022.07.29"]
[EventType "team-tourn"]
[EventCountry "IND"]
[SourceTitle "playchess.com"]
[Source "ChessBase"]
[SourceQuality "1"]
[WhiteTeam "Mexico"]
[BlackTeam "TTO"]
[WhiteTeamCountry "MEX"]
[TimeControl "40/5400+30:1800+30"]

1. e4 {[%emt 0:00:18]} e5 {[%emt 0:00:05]} 2. Nf3 {[%emt 0:00:35]} Nc6 {[%emt 0:00:05]} 3. Bb5 {[%emt 0:00:22]} a6 {[%emt 0:00:10]} 4. Ba4 {[%emt 0:00:06]} Nf6 {[%emt 0:00:14]} 5. d3 {[%emt 0:01:22]} Bc5 {[%emt 0:05:31]} 6. Nc3 {[%emt 0:06:07]} b5 {[%emt 0:05:29]} 7. Bb3 {[%emt 0:00:07]} d6 {[%emt 0:05:18]} 8. Nd5 {[%emt 0:00:42]} h6 {[%emt 0:00:09]} 9. c3 {[%emt 0:00:06]} Be6 {[%emt 0:14:48]} 10. Be3 {[%emt 0:03:18]} Bxd5 {[%emt 0:05:01]} 11. exd5 {[%emt 0:00:08]} Bxe3 {[%emt 0:01:00]} 12. fxe3 {[%emt 0:00:23]} Ne7 {[%emt 0:00:50]} 13. e4 {[%emt 0:01:00]} Ng6 {[%emt 0:03:41]} 14. Qd2 {[%emt 0:03:59]} Qd7 {[%emt 0:02:20]} 15. a4 {[%emt 0:13:09]} O-O {[%emt 0:00:43]} 16. O-O {[%emt 0:00:12]} Rfb8 {[%emt 0:04:14]} 17. Kh1 {[%emt 0:01:21]} Qc8 {[%emt 0:04:56]} 18. Ra2 {[%emt 0:04:48]} Qb7 {[%emt 0:02:19]} 19. Bd1 {[%emt 0:06:58]} b4 {[%emt 0:08:00]} 20. a5 {[%emt 0:12:11]} Qb5 {[%emt 0:09:28]} 21. Re1 {[%emt 0:02:21]} bxc3 {[%emt 0:03:42]} 22. Qxc3 {[%emt 0:06:32]} Ra7 {[%emt 0:04:10]} 23. Ba4 {[%emt 0:03:45]} Qb4 {[%emt 0:00:20]} 24. Rc1 {[%emt 0:03:04]} Nf4 {[%emt 0:02:35]} 25. b3 {[%emt 0:00:54]} Ng6 {[%emt 0:07:54]} 26. g3 {[%emt 0:02:48]} Kf8 {[%emt 0:01:11]} 27. Qxb4 {[%emt 0:00:32]} Rxb4 {[%emt 0:00:05]} 28. Rac2 {[%emt 0:00:11]} Rbb7 {[%emt 0:00:08]} 29. Rc4 {[%emt 0:07:10]} Ke7 {[%emt 0:02:27]} 30. b4 {[%emt 0:02:42]} Kd8 {[%emt 0:01:59]} 31. Kg1 {[%emt 0:01:58]} Nd7 {[%emt 0:00:27]} 32. Kf2 {[%emt 0:00:47]} Rb8 {[%emt 0:00:42]} 33. Ne1 {[%emt 0:00:26]} Ne7 {[%emt 0:00:27]} 34. Ke2 {[%emt 0:03:11]} f5 {[%emt 0:00:42]} 35. Nc2 {[%emt 0:02:09]} Nf6 {[%emt 0:00:39]} 36. Rf1 {[%emt 0:01:59]} g5 {[%emt 0:01:44]} 37. Kd2 {[%emt 0:00:34]} f4 {[%emt 0:00:28]} 38. gxf4 {[%emt 0:00:15]} exf4 {[%emt 0:01:28]} 39. Nd4 {[%emt 0:04:44]} Ng4 {[%emt 0:00:36]} 40. Rfc1 {[%emt 0:00:22]} Rbb7 {[%emt 0:00:26]} 41. Ne6+ {[%emt 0:36:11]} Kc8 {[%emt 0:30:10]} 42. d4 {[%emt 0:00:16]} Ne3 {[%emt 0:00:44]} 43. R4c3 {[%emt 0:00:44]} Rxb4 {[%emt 0:01:17]} 44. Rxc7+ {[%emt 0:00:00]} Kb8 {[%emt 0:00:00]} 45. Rxa7 {[%emt 0:00:00]} Kxa7 {[%emt 0:00:00]} 46. Be8 {[%emt 0:00:00]} Rb2+ {[%emt 0:00:00]} 47. Kd3 {[%emt 0:00:00]} Rb3+ {[%emt 0:00:00]} 48. Kd2 {[%emt 0:00:00]} Rb2+ {[%emt 0:00:00]} 49. Kd3 {[%emt 0:00:00]} Rb3+ {[%emt 0:00:00]} 50. Kd2 {[%emt 0:00:00]} Rb2+ {[%emt 0:00:00]} 1/2-1/2

[Event "44th Chess Olympiad Open 2022"]
[Site "Chennai"]
[Date "2022.08.09"]
[Round "11.38"]
[White "Winter Atwell, Adrian"]
[Black "Montes Orozco, Miguel Angel"]
[Result "1-0"]
[ECO "C47"]
[WhiteElo "2250"]
[BlackElo "2070"]
[Annotator "RC"]
[PlyCount "81"]
[EventDate "2022.07.29"]
[EventType "team-tourn"]
[EventCountry "IND"]
[SourceTitle "playchess.com"]
[Source "ChessBase"]
[SourceQuality "1"]
[WhiteTeam "TTO"]
[BlackTeam "Mexico"]
[BlackTeamCountry "MEX"]
[TimeControl "40/5400+30:1800+30"]

1. e4 {[%emt 0:00:10]} e5 {[%emt 0:00:08]} 2. Nf3 {[%emt 0:00:28]} Nc6 {[%emt 0:00:06]} 3. Nc3 {[%emt 0:00:23]} Nf6 {[%emt 0:00:18]} 4. a3 {[%emt 0:00:09]} d5 {[%emt 0:01:42]} 5. Bb5 {[%emt 0:00:43]} Nxe4 {[%emt 0:17:46]} 6. Qe2 {[%emt 0:00:38]} Nxc3 {[%emt 0:04:10]} 7. Qxe5+ {[%emt 0:00:18]} Qe7 {[%emt 0:02:21]} 8. Bxc6+ {[%emt 0:03:06]} bxc6 {[%emt 0:00:05]} 9. dxc3 {[%emt 0:02:34]} f6 {[%emt 0:06:36]} 10. Qxe7+ {[%emt 0:05:52]} Bxe7 {[%emt 0:00:09]} 11. Bf4 {[%emt 0:01:55]} Rb8 {[%emt 0:09:56]} 12. O-O-O {[%emt 0:04:53]} Rb7 {[%emt 0:00:31]} 13. Nd4 {[%emt 0:02:00]} Bd7 {[%emt 0:00:22]} 14. Nb3 {[%emt 0:06:37]} g5 {[%emt 0:17:51]} 15. Na5 {[%emt 0:03:59]} Rxb2 {[%emt 0:00:09]} 16. Kxb2 {[%emt 0:00:56]} gxf4 {[%emt 0:00:08]} 17. c4 {[%emt 0:02:58]} Kf7 {[%emt 0:01:51]} 18. cxd5 {[%emt 0:00:38]} Rb8+ {[%emt 0:00:11]} 19. Ka2 {[%emt 0:01:41]} cxd5 {[%emt 0:01:03]} 20. Rb1 {[%emt 0:02:20]} Rg8 {[%emt 0:03:13]} 21. g3 {[%emt 0:00:42]} Bc5 {[%emt 0:00:31]} 22. f3 {[%emt 0:04:27]} Bb6 {[%emt 0:03:46]} 23. Nb3 {[%emt 0:00:26]} Bf5 {[%emt 0:02:24]} 24. Rbd1 {[%emt 0:09:17]} fxg3 {[%emt 0:06:09]} 25. hxg3 {[%emt 0:00:06]} Rxg3 {[%emt 0:00:12]} 26. Rxd5 {[%emt 0:00:13]} Bxc2 {[%emt 0:00:38]} 27. Nd4 {[%emt 0:01:05]} Bd3 {[%emt 0:02:23]} 28. Rc1 {[%emt 0:03:30]} Rg2+ {[%emt 0:04:09]} 29. Kb3 {[%emt 0:02:15]} c5 {[%emt 0:00:57]} 30. Nc2 {[%emt 0:02:45]} c4+ {[%emt 0:02:00]} 31. Kc3 {[%emt 0:01:40]} Ke6 {[%emt 0:03:27]} 32. Nb4 {[%emt 0:00:53]} Be2 {[%emt 0:03:16]} 33. Rh5 {[%emt 0:03:41]} Bc7 {[%emt 0:02:09]} 34. Nc6 {[%emt 0:00:40]} Kd7 {[%emt 0:00:22]} 35. Nd4 {[%emt 0:00:42]} Bd3 {[%emt 0:00:07]} 36. Rd5+ {[%emt 0:01:38]} Kc8 {[%emt 0:00:05]} 37. Re1 {[%emt 0:05:35]} Be5 {[%emt 0:06:10]} 38. f4 {[%emt 0:00:08]} Bxf4 {[%emt 0:01:20]} 39. Re8+ {[%emt 0:01:15]} Kc7 {[%emt 0:00:11]} 40. Ne6+ {[%emt 0:00:16]} Kc6 {[%emt 0:00:08]} 41. Nxf4 {[%emt 0:30:13]} 1-0

[Event "44th Chess Olympiad Open 2022"]
[Site "Chennai"]
[Date "2022.08.09"]
[Round "11.38"]
[White "Capo Vidal, Uriel"]
[Black "Mc Intosh, Isaiah"]
[Result "1-0"]
[ECO "D02"]
[WhiteElo "2215"]
[BlackElo "2215"]
[Annotator "RC"]
[PlyCount "57"]
[EventDate "2022.07.29"]
[EventType "team-tourn"]
[EventCountry "IND"]
[SourceTitle "playchess.com"]
[Source "ChessBase"]
[SourceQuality "1"]
[WhiteTeam "Mexico"]
[BlackTeam "TTO"]
[WhiteTeamCountry "MEX"]
[TimeControl "40/5400+30:1800+30"]

1. d4 {[%emt 0:00:03]} d5 {[%emt 0:00:05]} 2. Bf4 {[%emt 0:00:08]} Nf6 {[%emt 0:00:05]} 3. Nf3 {[%emt 0:00:19]} c5 {[%emt 0:00:04]} 4. e3 {[%emt 0:00:12]} Nc6 {[%emt 0:00:10]} 5. Nbd2 {[%emt 0:00:44]} e6 {[%emt 0:00:19]} 6. c3 {[%emt 0:01:15]} Bd6 {[%emt 0:00:13]} 7. Bg3 {[%emt 0:01:40]} O-O {[%emt 0:00:08]} 8. Bd3 {[%emt 0:00:34]} b6 {[%emt 0:00:06]} 9. e4 {[%emt 0:07:29]} Be7 {[%emt 0:00:06]} 10. e5 {[%emt 0:07:46]} Nh5 {[%emt 0:00:07]} 11. Ng5 {[%emt 0:01:11]} Bxg5 {[%emt 0:00:07]} 12. Qxh5 {[%emt 0:00:08]} g6 {[%emt 0:00:03]} 13. Qe2 {[%emt 0:00:37]} cxd4 {[%emt 0:00:06]} 14. h4 {[%emt 0:01:13]} Bxd2+ {[%emt 0:00:08]} 15. Qxd2 {[%emt 0:00:08]} dxc3 {[%emt 0:00:04]} 16. bxc3 {[%emt 0:00:12]} d4 {[%emt 0:00:08]} 17. c4 {[%emt 0:00:16]} Bb7 {[%emt 0:19:18]} 18. h5 {[%emt 0:01:36]} g5 {[%emt 0:00:06]} 19. f4 {[%emt 0:06:13]} f6 {[%emt 0:15:52]} 20. exf6 {[%emt 0:02:29]} gxf4 {[%emt 0:09:31]} 21. Bxf4 {[%emt 0:14:07]} Qxf6 {[%emt 0:00:42]} 22. O-O {[%emt 0:00:22]} Qh4 {[%emt 0:20:20]} 23. Bd6 {[%emt 0:04:18]} Rxf1+ {[%emt 0:19:40]} 24. Rxf1 {[%emt 0:00:12]} Qxh5 {[%emt 0:00:04]} 25. Qf4 {[%emt 0:00:57]} Re8 {[%emt 0:00:25]} 26. Qg3+ {[%emt 0:01:08]} Kh8 {[%emt 0:00:25]} 27. Bf8 {[%emt 0:07:28]} Qe5 {[%emt 0:02:10]} 28. Qh4 {[%emt 0:00:23]} Qc7 {[%emt 0:00:07]} 29. Bg6 {[%emt 0:05:34]} 1-0

[Event "44th Chess Olympiad Open 2022"]
[Site "Chennai"]
[Date "2022.08.09"]
[Round "11.38"]
[White "Johnson, Joshua"]
[Black "Ibarra Chami, Luis Fernando"]
[Result "1/2-1/2"]
[ECO "B33"]
[WhiteElo "2178"]
[BlackElo "2452"]
[Annotator "RC"]
[PlyCount "87"]
[EventDate "2022.07.29"]
[EventType "team-tourn"]
[EventCountry "IND"]
[SourceTitle "playchess.com"]
[Source "ChessBase"]
[SourceQuality "1"]
[WhiteTeam "TTO"]
[BlackTeam "Mexico"]
[BlackTeamCountry "MEX"]
[TimeControl "40/5400+30:1800+30"]

1. e4 {[%emt 0:00:03]} c5 {[%emt 0:00:07]} 2. Nf3 {[%emt 0:00:03]} Nc6 {[%emt 0:00:06]} 3. d4 {[%emt 0:00:05]} cxd4 {[%emt 0:00:05]} 4. Nxd4 {[%emt 0:00:03]} Nf6 {[%emt 0:00:09]} 5. Nc3 {[%emt 0:00:03]} e5 {[%emt 0:00:06]} 6. Ndb5 {[%emt 0:00:03]} d6 {[%emt 0:00:06]} 7. Bg5 {[%emt 0:00:34]} a6 {[%emt 0:00:16]} 8. Na3 {[%emt 0:00:03]} b5 {[%emt 0:00:18]} 9. Bxf6 {[%emt 0:00:06]} gxf6 {[%emt 0:00:14]} 10. Nd5 {[%emt 0:00:10]} f5 {[%emt 0:00:34]} 11. exf5 {[%emt 0:00:31]} Bxf5 {[%emt 0:44:22]} 12. Qf3 {[%emt 0:12:31]} Nd4 {[%emt 0:09:45]} 13. Nc7+ {[%emt 0:00:40]} Qxc7 {[%emt 0:00:05]} 14. Qxa8+ {[%emt 0:00:05]} Ke7 {[%emt 0:03:58]} 15. c3 {[%emt 0:54:56]} b4 {[%emt 0:01:19]} 16. cxb4 {[%emt 0:00:02]} Qb6 {[%emt 0:02:35]} 17. Bxa6 {[%emt 0:00:16]} Qxb4+ {[%emt 0:03:07]} 18. Kf1 {[%emt 0:00:25]} Qd2 {[%emt 0:18:07]} 19. h4 {[%emt 0:17:36]} Bh6 {[%emt 0:00:28]} 20. Qb7+ {[%emt 0:01:41]} Kf6 {[%emt 0:00:08]} 21. Rh3 {[%emt 0:00:34]} Bxh3 {[%emt 0:02:49]} 22. gxh3 {[%emt 0:00:03]} Rf8 {[%emt 0:07:46]} 23. Re1 {[%emt 0:00:17]} Qf4 {[%emt 0:01:18]} 24. Nc4 {[%emt 0:01:45]} Nf3 {[%emt 0:00:40]} 25. Re3 {[%emt 0:01:17]} Nxh4 {[%emt 0:00:23]} 26. Nxd6 {[%emt 0:02:27]} Kg7 {[%emt 0:01:33]} 27. Bc4 {[%emt 0:02:14]} Nf5 {[%emt 0:01:09]} 28. Nxf5+ {[%emt 0:01:00]} Qxf5 {[%emt 0:00:04]} 29. Bd3 {[%emt 0:04:37]} Qe6 {[%emt 0:00:49]} 30. Rg3+ {[%emt 0:00:46]} Kh8 {[%emt 0:00:07]} 31. Qa6 {[%emt 0:00:26]} Qxa6 {[%emt 0:01:26]} 32. Bxa6 {[%emt 0:00:02]} Rb8 {[%emt 0:00:46]} 33. Bc4 {[%emt 0:00:32]} Bf4 {[%emt 0:00:48]} 34. Ra3 {[%emt 0:01:02]} Rxb2 {[%emt 0:00:53]} 35. Bxf7 {[%emt 0:00:03]} Kg7 {[%emt 0:00:05]} 36. Bd5 {[%emt 0:00:46]} Kf6 {[%emt 0:00:23]} 37. Ra6+ {[%emt 0:00:29]} Kf5 {[%emt 0:00:38]} 38. Be6+ {[%emt 0:00:11]} Kg5 {[%emt 0:00:35]} 39. a4 {[%emt 0:00:14]} Bd2 {[%emt 0:00:04]} 40. Rc6 {[%emt 0:00:42]} Ba5 {[%emt 0:01:00]} 41. Rc5 {[%emt 0:04:10]} Rxf2+ {[%emt 0:01:09]} 42. Kxf2 {[%emt 0:04:49]} Bb6 {[%emt 0:01:29]} 43. Kf3 {[%emt 0:00:08]} Bxc5 {[%emt 0:00:04]} 44. Ke4 {[%emt 0:00:34]} 1/2-1/2

[Event "44th Chess Olympiad Open 2022"]
[Site "Chennai"]
[Date "2022.08.09"]
[Round "11.39"]
[White "Greet, Andrew N"]
[Black "Makoto, Rodwell"]
[Result "1-0"]
[ECO "C54"]
[WhiteElo "2392"]
[BlackElo "2346"]
[Annotator "RC"]
[PlyCount "113"]
[EventDate "2022.07.29"]
[EventType "team-tourn"]
[EventCountry "IND"]
[SourceTitle "playchess.com"]
[Source "ChessBase"]
[SourceQuality "1"]
[WhiteTeam "Scotland"]
[BlackTeam "Zimbabwe"]
[WhiteTeamCountry "SCO"]
[BlackTeamCountry "ZIM"]
[TimeControl "40/5400+30:1800+30"]

1. e4 {[%emt 0:00:05]} e5 {[%emt 0:02:57]} 2. Nf3 {[%emt 0:00:09]} Nc6 {[%emt 0:00:04]} 3. Bc4 {[%emt 0:00:08]} Bc5 {[%emt 0:00:04]} 4. c3 {[%emt 0:00:07]} Nf6 {[%emt 0:00:24]} 5. d4 {[%emt 0:00:09]} exd4 {[%emt 0:00:36]} 6. e5 {[%emt 0:00:07]} d5 {[%emt 0:00:31]} 7. Bb5 {[%emt 0:00:09]} Ne4 {[%emt 0:00:49]} 8. cxd4 {[%emt 0:00:06]} Bb6 {[%emt 0:00:03]} 9. Nc3 {[%emt 0:00:11]} O-O {[%emt 0:00:34]} 10. Be3 {[%emt 0:00:07]} Ne7 {[%emt 0:02:28]} 11. Bd3 {[%emt 0:01:02]} f5 {[%emt 0:02:28]} 12. a4 {[%emt 0:02:13]} c6 {[%emt 0:03:45]} 13. O-O {[%emt 0:05:13]} h6 {[%emt 0:00:37]} 14. Ne2 {[%emt 0:14:30]} g5 {[%emt 0:01:06]} 15. Ne1 {[%emt 0:07:18]} c5 {[%emt 0:10:46]} 16. dxc5 {[%emt 0:06:28]} Bxc5 {[%emt 0:01:26]} 17. Bxc5 {[%emt 0:03:44]} Nxc5 {[%emt 0:00:03]} 18. Nd4 {[%emt 0:01:12]} Ng6 {[%emt 0:02:11]} 19. e6 {[%emt 0:10:31]} Ne7 {[%emt 0:08:47]} 20. Qh5 {[%emt 0:11:56]} Kg7 {[%emt 0:02:57]} 21. h4 {[%emt 0:00:25]} Qe8 {[%emt 0:03:10]} 22. Qxe8 {[%emt 0:01:20]} Rxe8 {[%emt 0:00:05]} 23. hxg5 {[%emt 0:05:23]} hxg5 {[%emt 0:02:29]} 24. Bxf5 {[%emt 0:04:42]} Nxf5 {[%emt 0:02:56]} 25. Nxf5+ {[%emt 0:00:46]} Kf6 {[%emt 0:00:30]} 26. Nd4 {[%emt 0:02:03]} Bxe6 {[%emt 0:00:18]} 27. Nec2 {[%emt 0:03:05]} Bf7 {[%emt 0:01:57]} 28. Rfd1 {[%emt 0:01:58]} Re4 {[%emt 0:09:40]} 29. f3 {[%emt 0:04:28]} Re7 {[%emt 0:04:12]} 30. a5 {[%emt 0:02:08]} Ne6 {[%emt 0:03:07]} 31. Nxe6 {[%emt 0:03:22]} Kxe6 {[%emt 0:03:41]} 32. Nd4+ {[%emt 0:03:10]} Kf6 {[%emt 0:01:18]} 33. Rac1 {[%emt 0:00:31]} Rd8 {[%emt 0:02:20]} 34. b4 {[%emt 0:01:51]} Rdd7 {[%emt 0:00:52]} 35. Kf2 {[%emt 0:00:31]} Rc7 {[%emt 0:00:34]} 36. Nb5 {[%emt 0:01:09]} Rxc1 {[%emt 0:00:48]} 37. Rxc1 {[%emt 0:00:05]} a6 {[%emt 0:01:07]} 38. Nd4 {[%emt 0:00:11]} Be8 {[%emt 0:01:20]} 39. Rc3 {[%emt 0:01:58]} Bf7 {[%emt 0:05:32]} 40. Rc2 {[%emt 0:02:46]} Bg8 {[%emt 0:03:40]} 41. Nb3 {[%emt 0:07:12]} Bf7 {[%emt 0:10:05]} 42. Nc5 {[%emt 0:02:43]} Be8 {[%emt 0:15:46]} 43. Re2 {[%emt 0:06:04]} Rxe2+ {[%emt 0:01:28]} 44. Kxe2 {[%emt 0:00:05]} Ke5 {[%emt 0:00:03]} 45. Nxb7 {[%emt 0:00:18]} Kd4 {[%emt 0:00:17]} 46. Kd2 {[%emt 0:03:49]} Bd7 {[%emt 0:04:45]} 47. Nd6 {[%emt 0:00:37]} Bc6 {[%emt 0:04:09]} 48. Nf7 {[%emt 0:04:11]} Be8 {[%emt 0:08:14]} 49. Nxg5 {[%emt 0:00:35]} Kc4 {[%emt 0:00:11]} 50. f4 {[%emt 0:09:45]} Kxb4 {[%emt 0:00:07]} 51. f5 {[%emt 0:00:08]} Kxa5 {[%emt 0:00:16]} 52. f6 {[%emt 0:00:32]} Kb4 {[%emt 0:04:39]} 53. f7 {[%emt 0:00:12]} Bxf7 {[%emt 0:00:04]} 54. Nxf7 {[%emt 0:00:03]} a5 {[%emt 0:01:28]} 55. g4 {[%emt 0:00:25]} a4 {[%emt 0:01:05]} 56. g5 {[%emt 0:00:22]} a3 {[%emt 0:00:20]} 57. Kc2 {[%emt 0:00:16]} 1-0